[Event "Early-Titled-Tuesday-Blitz-October-10-2023"]
[Site "Chess.com"]
[Date "2023.10.10"]
[Round "5"]
[White "Karttunen"]
[Black "Rsnr"]
[Result "0-1"]
[WhiteElo "2652"]
[BlackElo "2848"]
[TimeControl "180+1"]
[EndTime "8:54:05 PDT"]
[Termination "Rsnr won by resignation"]

1. e4 {[%clk 0:02:52.8]} 1... c6 {[%clk 0:03:00.1]} 2. d4 {[%clk 0:02:51.9]}
2... d5 {[%clk 0:03:01]} 3. e5 {[%clk 0:02:51.8]} 3... Bf5 {[%clk 0:03:01]} 4.
h4 {[%clk 0:02:51.3]} 4... h6 {[%clk 0:02:54.1]} 5. g4 {[%clk 0:02:49.3]} 5...
Be4 {[%clk 0:02:54.4]} 6. f3 {[%clk 0:02:49.2]} 6... Bh7 {[%clk 0:02:55]} 7. e6
{[%clk 0:02:49.6]} 7... fxe6 {[%clk 0:02:54.7]} 8. Bd3 {[%clk 0:02:40.1]} 8...
Nf6 {[%clk 0:02:55.2]} 9. Bxh7 {[%clk 0:02:28.9]} 9... Rxh7 {[%clk 0:02:56.1]}
10. Ne2 {[%clk 0:02:16.9]} 10... c5 {[%clk 0:02:38.3]} 11. Qd3 {[%clk 0:02:09]}
11... Nc6 {[%clk 0:02:31.4]} 12. c3 {[%clk 0:02:02.1]} 12... Qb6 {[%clk
0:01:44.2]} 13. Qg6+ {[%clk 0:01:36.7]} 13... Kd7 {[%clk 0:01:39.7]} 14. dxc5
{[%clk 0:01:18.1]} 14... Qxc5 {[%clk 0:01:40.6]} 15. Bf4 {[%clk 0:00:39.7]}
15... e5 {[%clk 0:01:40.7]} 16. b4 {[%clk 0:00:32.4]} 16... Qb6 {[%clk
0:01:14.8]} 17. Bg3 {[%clk 0:00:31]} 17... e6 {[%clk 0:00:57.1]} 18. Bf2 {[%clk
0:00:30.9]} 18... Qc7 {[%clk 0:00:56]} 19. Nd2 {[%clk 0:00:30.2]} 19... Bd6
{[%clk 0:00:55]} 20. Rd1 {[%clk 0:00:19]} 20... e4 {[%clk 0:00:55.2]} 21. f4
{[%clk 0:00:09.6]} 21... Rf8 {[%clk 0:00:44.9]} 22. g5 {[%clk 0:00:09.7]} 22...
Ne7 {[%clk 0:00:45]} 23. Qxh7 {[%clk 0:00:05.3]} 23... Nxh7 {[%clk 0:00:45.9]}
24. Bd4 {[%clk 0:00:04.2]} 24... Nf5 {[%clk 0:00:46]} 25. Bxg7 {[%clk
0:00:03.3]} 25... Nxg7 {[%clk 0:00:46]} 26. gxh6 {[%clk 0:00:03.9]} 26... Nf5
{[%clk 0:00:46.4]} 27. Nb3 {[%clk 0:00:04.1]} 27... Ne3 {[%clk 0:00:44.4]} 28.
Rd2 {[%clk 0:00:04.3]} 28... Ng2+ {[%clk 0:00:39.5]} 29. Kd1 {[%clk 0:00:03.8]}
29... Nxf4 {[%clk 0:00:40.4]} 30. Ned4 {[%clk 0:00:03.4]} 30... Nd3 {[%clk
0:00:38.9]} 31. Kc2 {[%clk 0:00:03.2]} 31... Nxb4+ {[%clk 0:00:37.2]} 32. Kb2
{[%clk 0:00:03.4]} 32... Nd3+ {[%clk 0:00:37.5]} 33. Kc2 {[%clk 0:00:03.8]}
33... Bf4 {[%clk 0:00:24.5]} 34. Re2 {[%clk 0:00:03.3]} 34... Bxh6 {[%clk
0:00:23]} 35. Rd1 {[%clk 0:00:02.4]} 35... Rf2 {[%clk 0:00:15.5]} 36. Rxd3
{[%clk 0:00:01.6]} 36... Rxe2+ {[%clk 0:00:15.5]} 37. Nxe2 {[%clk 0:00:01.7]}
37... exd3+ {[%clk 0:00:16.4]} 38. Kxd3 {[%clk 0:00:02.5]} 38... Nf6 {[%clk
0:00:16.4]} 0-1

[Event "Early-Titled-Tuesday-Blitz-October-10-2023"]
[Site "Chess.com"]
[Date "2023.10.10"]
[Round "5"]
[White "Zq1"]
[Black "MikeSailer"]
[Result "1-0"]
[WhiteElo "2518"]
[BlackElo "2140"]
[TimeControl "180+1"]
[EndTime "8:54:05 PDT"]
[Termination "Zq1 won by checkmate"]

1. d4 {[%clk 0:02:57.3]} 1... d5 {[%clk 0:03:00]} 2. c4 {[%clk 0:02:56.6]} 2...
c6 {[%clk 0:02:56.6]} 3. cxd5 {[%clk 0:02:51.8]} 3... cxd5 {[%clk 0:02:55.3]} 4.
Bg5 {[%clk 0:02:52.4]} 4... Nf6 {[%clk 0:02:52.2]} 5. Bxf6 {[%clk 0:02:52.3]}
5... gxf6 {[%clk 0:02:47.9]} 6. Nc3 {[%clk 0:02:52.2]} 6... e6 {[%clk
0:02:41.7]} 7. e3 {[%clk 0:02:51.7]} 7... Nc6 {[%clk 0:02:39.8]} 8. g3 {[%clk
0:02:51.6]} 8... Bd6 {[%clk 0:02:37.8]} 9. Bg2 {[%clk 0:02:51.5]} 9... a6 {[%clk
0:02:26.9]} 10. Nge2 {[%clk 0:02:49.7]} 10... Bd7 {[%clk 0:02:17]} 11. O-O
{[%clk 0:02:49.1]} 11... Qe7 {[%clk 0:02:11.4]} 12. Rc1 {[%clk 0:02:47.5]} 12...
h5 {[%clk 0:02:09.6]} 13. h4 {[%clk 0:02:46.1]} 13... O-O-O {[%clk 0:01:49.9]}
14. Na4 {[%clk 0:02:44.7]} 14... Bc7 {[%clk 0:01:47.2]} 15. Nc5 {[%clk
0:02:43.2]} 15... Bd6 {[%clk 0:01:31.3]} 16. Qb3 {[%clk 0:02:41.4]} 16... Bxc5
{[%clk 0:01:29.3]} 17. Rxc5 {[%clk 0:02:40.5]} 17... Qd6 {[%clk 0:01:14.9]} 18.
Rfc1 {[%clk 0:02:37.7]} 18... Kc7 {[%clk 0:01:11.4]} 19. Nf4 {[%clk 0:02:34]}
19... Rb8 {[%clk 0:01:06.7]} 20. a4 {[%clk 0:02:17.4]} 20... Kd8 {[%clk
0:01:00.7]} 21. Qb6+ {[%clk 0:02:08.7]} 21... Ke7 {[%clk 0:00:41.9]} 22. b4
{[%clk 0:02:04.7]} 22... f5 {[%clk 0:00:11.1]} 23. b5 {[%clk 0:01:54.7]} 23...
axb5 {[%clk 0:00:07.8]} 24. axb5 {[%clk 0:01:52.4]} 24... Nd8 {[%clk 0:00:08.3]}
25. Qa7 {[%clk 0:01:33.1]} 25... f6 {[%clk 0:00:09.2]} 26. Rc7 {[%clk
0:01:22.2]} 26... Nf7 {[%clk 0:00:09.3]} 27. Qc5 {[%clk 0:01:15.2]} 27... Qxc5
{[%clk 0:00:09.5]} 28. R1xc5 {[%clk 0:01:12.2]} 28... b6 {[%clk 0:00:10.3]} 29.
R5c6 {[%clk 0:01:09]} 29... Kd8 {[%clk 0:00:09.2]} 30. Ra7 {[%clk 0:00:51.1]}
30... Bxc6 {[%clk 0:00:09.1]} 31. Nxe6+ {[%clk 0:00:49.8]} 31... Ke8 {[%clk
0:00:07.7]} 32. bxc6 {[%clk 0:00:49.7]} 32... Rc8 {[%clk 0:00:07.4]} 33. Bxd5
{[%clk 0:00:47.1]} 33... Nd6 {[%clk 0:00:06.3]} 34. Rd7 {[%clk 0:00:43.2]} 34...
Nb5 {[%clk 0:00:06.3]} 35. Ng7+ {[%clk 0:00:39.9]} 35... Kf8 {[%clk 0:00:07.2]}
36. Nxf5 {[%clk 0:00:30.2]} 36... Nc3 {[%clk 0:00:06.9]} 37. Rf7+ {[%clk
0:00:29.3]} 37... Ke8 {[%clk 0:00:07.2]} 38. Ng7+ {[%clk 0:00:26.6]} 38... Kd8
{[%clk 0:00:04.9]} 39. Rd7# {[%clk 0:00:26.5]} 1-0

[Event "Early-Titled-Tuesday-Blitz-October-10-2023"]
[Site "Chess.com"]
[Date "2023.10.10"]
[Round "5"]
[White "maracayo"]
[Black "campochess"]
[Result "1-0"]
[WhiteElo "2378"]
[BlackElo "2134"]
[TimeControl "180+1"]
[EndTime "8:54:06 PDT"]
[Termination "maracayo won by checkmate"]

1. e4 {[%clk 0:03:00.9]} 1... c5 {[%clk 0:02:58.2]} 2. Nc3 {[%clk 0:02:59.6]}
2... Nc6 {[%clk 0:02:58.1]} 3. f4 {[%clk 0:02:59]} 3... a6 {[%clk 0:02:57.2]} 4.
Nf3 {[%clk 0:02:58.8]} 4... e6 {[%clk 0:02:56.9]} 5. g3 {[%clk 0:02:57.2]} 5...
Nf6 {[%clk 0:02:55.9]} 6. Bg2 {[%clk 0:02:55.6]} 6... d5 {[%clk 0:02:55.8]} 7.
d3 {[%clk 0:02:30.5]} 7... dxe4 {[%clk 0:02:52.8]} 8. dxe4 {[%clk 0:02:12.2]}
8... Qxd1+ {[%clk 0:02:36.5]} 9. Kxd1 {[%clk 0:02:13.1]} 9... b5 {[%clk
0:02:24.5]} 10. e5 {[%clk 0:02:10.6]} 10... Nd5 {[%clk 0:02:20.4]} 11. Ne4
{[%clk 0:01:48.1]} 11... Bb7 {[%clk 0:02:19.4]} 12. c3 {[%clk 0:01:46.7]} 12...
Rd8 {[%clk 0:02:17.7]} 13. Ke2 {[%clk 0:01:40.4]} 13... Be7 {[%clk 0:02:12.8]}
14. a4 {[%clk 0:01:39.5]} 14... O-O {[%clk 0:02:11.3]} 15. Rd1 {[%clk
0:01:36.2]} 15... Nb6 {[%clk 0:02:07.4]} 16. axb5 {[%clk 0:01:31]} 16... axb5
{[%clk 0:02:05.9]} 17. Rxd8 {[%clk 0:01:29.3]} 17... Rxd8 {[%clk 0:02:04.4]} 18.
Be3 {[%clk 0:01:20.8]} 18... Nc4 {[%clk 0:01:48.6]} 19. Bxc5 {[%clk 0:01:16]}
19... Nxb2 {[%clk 0:01:45.7]} 20. Bxe7 {[%clk 0:01:06.6]} 20... Nxe7 {[%clk
0:01:44.6]} 21. Nd6 {[%clk 0:01:03.3]} 21... Bc6 {[%clk 0:01:35]} 22. Ra7 {[%clk
0:00:38.3]} 22... Rd7 {[%clk 0:01:20.8]} 23. Rxd7 {[%clk 0:00:31.6]} 23... Bxd7
{[%clk 0:01:19.4]} 24. Nd4 {[%clk 0:00:32.5]} 24... Na4 {[%clk 0:01:02.9]} 25.
N4xb5 {[%clk 0:00:31.6]} 25... Nf5 {[%clk 0:00:57.5]} 26. Kd3 {[%clk 0:00:26]}
26... Nc5+ {[%clk 0:00:53.3]} 27. Kc4 {[%clk 0:00:20.2]} 27... Bxb5+ {[%clk
0:00:51]} 28. Kxc5 {[%clk 0:00:19]} 28... Bd3 {[%clk 0:00:48.6]} 29. Bc6 {[%clk
0:00:17.8]} 29... Kf8 {[%clk 0:00:45.8]} 30. Nxf5 {[%clk 0:00:16.6]} 30... Bxf5
{[%clk 0:00:44.5]} 31. Kd6 {[%clk 0:00:17.5]} 31... Bd3 {[%clk 0:00:41.1]} 32.
Bd7 {[%clk 0:00:15.9]} 32... Bc4 {[%clk 0:00:38.8]} 33. Ba4 {[%clk 0:00:15.5]}
33... h6 {[%clk 0:00:36.6]} 34. h4 {[%clk 0:00:15.5]} 34... g6 {[%clk
0:00:36.2]} 35. Bd1 {[%clk 0:00:13.9]} 35... Ke8 {[%clk 0:00:34.4]} 36. Ba4+
{[%clk 0:00:13.3]} 36... Kd8 {[%clk 0:00:32.7]} 37. Kc5 {[%clk 0:00:13.4]} 37...
Bd5 {[%clk 0:00:31.2]} 38. Kd6 {[%clk 0:00:13.3]} 38... Bc4 {[%clk 0:00:31]} 39.
Kc5 {[%clk 0:00:13.7]} 39... Bd5 {[%clk 0:00:29.1]} 40. c4 {[%clk 0:00:13.9]}
40... Bf3 {[%clk 0:00:28.9]} 41. Kd6 {[%clk 0:00:14.2]} 41... Be4 {[%clk
0:00:24.9]} 42. Bd7 {[%clk 0:00:14]} 42... Bb7 {[%clk 0:00:22.2]} 43. c5 {[%clk
0:00:14.1]} 43... Ba6 {[%clk 0:00:22.1]} 44. c6 {[%clk 0:00:14]} 44... h5 {[%clk
0:00:21.2]} 45. c7# {[%clk 0:00:14.1]} 1-0

[Event "Early-Titled-Tuesday-Blitz-October-10-2023"]
[Site "Chess.com"]
[Date "2023.10.10"]
[Round "5"]
[White "GothamChess"]
[Black "Firouzja2003"]
[Result "1-0"]
[WhiteElo "2742"]
[BlackElo "3064"]
[TimeControl "180+1"]
[EndTime "8:54:07 PDT"]
[Termination "GothamChess won on time"]

1. e4 {[%clk 0:02:57.9]} 1... c6 {[%clk 0:02:57.8]} 2. d4 {[%clk 0:02:53.5]}
2... d5 {[%clk 0:02:57.9]} 3. f3 {[%clk 0:02:53.2]} 3... e6 {[%clk 0:02:55.9]}
4. Nc3 {[%clk 0:02:52.6]} 4... Bb4 {[%clk 0:02:56.1]} 5. a3 {[%clk 0:02:51]}
5... Ba5 {[%clk 0:02:55.2]} 6. Be3 {[%clk 0:02:39.1]} 6... Ne7 {[%clk
0:02:54.9]} 7. Bd3 {[%clk 0:02:36.6]} 7... Nd7 {[%clk 0:02:53.5]} 8. b4 {[%clk
0:02:31.7]} 8... Bb6 {[%clk 0:02:53.4]} 9. Nge2 {[%clk 0:02:28.3]} 9... dxe4
{[%clk 0:02:47.2]} 10. Nxe4 {[%clk 0:02:25.5]} 10... O-O {[%clk 0:02:47.1]} 11.
O-O {[%clk 0:02:17]} 11... e5 {[%clk 0:02:38.4]} 12. Bf2 {[%clk 0:02:10.3]}
12... exd4 {[%clk 0:02:38.4]} 13. Nxd4 {[%clk 0:01:47.6]} 13... Ne5 {[%clk
0:02:38.6]} 14. c3 {[%clk 0:01:34.3]} 14... Nd5 {[%clk 0:02:32.8]} 15. Bc2
{[%clk 0:01:28.2]} 15... Re8 {[%clk 0:02:30.1]} 16. Bb3 {[%clk 0:01:24.2]} 16...
h5 {[%clk 0:01:47.5]} 17. Kh1 {[%clk 0:01:21.9]} 17... h4 {[%clk 0:01:44]} 18.
Qd2 {[%clk 0:00:47.8]} 18... h3 {[%clk 0:01:38]} 19. g3 {[%clk 0:00:44.9]} 19...
Nxf3 {[%clk 0:01:04.6]} 20. Nxf3 {[%clk 0:00:42.3]} 20... Rxe4 {[%clk
0:01:05.3]} 21. Ng5 {[%clk 0:00:38.7]} 21... Re7 {[%clk 0:00:59.4]} 22. Bxb6
{[%clk 0:00:23.7]} 22... Qxb6 {[%clk 0:00:58.7]} 23. Qd3 {[%clk 0:00:19.5]}
23... g6 {[%clk 0:00:29.9]} 24. Rxf7 {[%clk 0:00:16.3]} 24... Bf5 {[%clk
0:00:29.7]} 25. Rxf5 {[%clk 0:00:12.6]} 25... gxf5 {[%clk 0:00:30.1]} 26. Qxf5
{[%clk 0:00:09.8]} 26... Qe3 {[%clk 0:00:22.9]} 27. Rf1 {[%clk 0:00:08]} 27...
Rg7 {[%clk 0:00:11.1]} 28. Nxh3 {[%clk 0:00:03]} 28... Re8 {[%clk 0:00:06.5]}
29. Nf4 {[%clk 0:00:01.6]} 29... Rf7 {[%clk 0:00:01.7]} 30. Bxd5 {[%clk
0:00:01.1]} 30... cxd5 {[%clk 0:00:01.7]} 31. Qg6+ {[%clk 0:00:01.7]} 31... Kf8
{[%clk 0:00:02.2]} 32. Qh6+ {[%clk 0:00:01.5]} 32... Ke7 {[%clk 0:00:01.2]} 33.
Nxd5+ {[%clk 0:00:01.5]} 33... Kd8 {[%clk 0:00:01.9]} 34. Nxe3 {[%clk
0:00:02.3]} 1-0

[Event "Early-Titled-Tuesday-Blitz-October-10-2023"]
[Site "Chess.com"]
[Date "2023.10.10"]
[Round "5"]
[White "Irishchessman16"]
[Black "Zurability"]
[Result "1/2-1/2"]
[WhiteElo "2458"]
[BlackElo "2709"]
[TimeControl "180+1"]
[EndTime "8:54:08 PDT"]
[Termination "Game drawn by repetition"]

1. e4 {[%clk 0:03:00.9]} 1... c5 {[%clk 0:02:56.9]} 2. Nf3 {[%clk 0:03:00.7]}
2... d6 {[%clk 0:02:57.6]} 3. Bb5+ {[%clk 0:02:59.5]} 3... Bd7 {[%clk
0:02:57.3]} 4. a4 {[%clk 0:02:59]} 4... a6 {[%clk 0:02:57.2]} 5. Bc4 {[%clk
0:02:58.8]} 5... Nf6 {[%clk 0:02:57.2]} 6. Nc3 {[%clk 0:02:57.1]} 6... g6 {[%clk
0:02:56]} 7. e5 {[%clk 0:02:54.8]} 7... dxe5 {[%clk 0:02:48.5]} 8. Nxe5 {[%clk
0:02:53.3]} 8... e6 {[%clk 0:02:48.9]} 9. O-O {[%clk 0:02:33.1]} 9... Bg7 {[%clk
0:02:49]} 10. d3 {[%clk 0:02:26.5]} 10... O-O {[%clk 0:02:49]} 11. Be3 {[%clk
0:02:25.7]} 11... Qc7 {[%clk 0:02:42.9]} 12. Nxd7 {[%clk 0:02:23.5]} 12... Nbxd7
{[%clk 0:02:42.7]} 13. a5 {[%clk 0:02:22.7]} 13... h5 {[%clk 0:02:37.6]} 14. h3
{[%clk 0:02:19]} 14... Rac8 {[%clk 0:02:30.9]} 15. Na4 {[%clk 0:02:14.7]} 15...
Qd6 {[%clk 0:02:28.3]} 16. c3 {[%clk 0:02:09.2]} 16... Nd5 {[%clk 0:02:28.1]}
17. Qb3 {[%clk 0:02:06.5]} 17... Nxe3 {[%clk 0:02:10.2]} 18. fxe3 {[%clk
0:02:07.4]} 18... Ne5 {[%clk 0:02:10.8]} 19. Qxb7 {[%clk 0:02:00.7]} 19... Nxc4
{[%clk 0:01:49.6]} 20. dxc4 {[%clk 0:01:58.7]} 20... Rb8 {[%clk 0:01:46.3]} 21.
Qa7 {[%clk 0:01:50.6]} 21... Qd3 {[%clk 0:01:29.1]} 22. Qxc5 {[%clk 0:01:45.1]}
22... Rfc8 {[%clk 0:01:29.7]} 23. Qa7 {[%clk 0:01:38.6]} 23... f5 {[%clk
0:01:20.7]} 24. Rad1 {[%clk 0:01:14]} 24... Qe4 {[%clk 0:01:13.1]} 25. Rf4
{[%clk 0:01:00.4]} 25... Qc6 {[%clk 0:01:03.4]} 26. Rd7 {[%clk 0:00:54.1]} 26...
Be5 {[%clk 0:01:00.5]} 27. Rh7 {[%clk 0:00:51.1]} 27... Bc7 {[%clk 0:00:49.8]}
28. Nb6 {[%clk 0:00:47.2]} 28... Kxh7 {[%clk 0:00:38.4]} 29. Nxc8 {[%clk
0:00:46]} 29... Rxc8 {[%clk 0:00:38.9]} 30. Rd4 {[%clk 0:00:42.9]} 30... Kh6
{[%clk 0:00:38.3]} 31. Rd3 {[%clk 0:00:26.2]} 31... Qe4 {[%clk 0:00:21.3]} 32.
Qd4 {[%clk 0:00:22.2]} 32... Bg3 {[%clk 0:00:18.2]} 33. Rd1 {[%clk 0:00:11.3]}
33... Rxc4 {[%clk 0:00:17.1]} 34. Qh8+ {[%clk 0:00:10.5]} 34... Kg5 {[%clk
0:00:14.5]} 35. Qd8+ {[%clk 0:00:10.1]} 35... Kh6 {[%clk 0:00:14.2]} 36. Qh8+
{[%clk 0:00:09.8]} 36... Kg5 {[%clk 0:00:08.2]} 37. Qd8+ {[%clk 0:00:06.7]}
37... Kh6 {[%clk 0:00:06.6]} 38. Qh8+ {[%clk 0:00:04.9]} 1/2-1/2

[Event "Early-Titled-Tuesday-Blitz-October-10-2023"]
[Site "Chess.com"]
[Date "2023.10.10"]
[Round "5"]
[White "Abund"]
[Black "Lion-Al-Messi"]
[Result "1-0"]
[WhiteElo "2786"]
[BlackElo "2621"]
[TimeControl "180+1"]
[EndTime "8:54:11 PDT"]
[Termination "Abund won by resignation"]

1. e4 {[%clk 0:03:00.9]} 1... c5 {[%clk 0:03:00]} 2. Nf3 {[%clk 0:03:00.8]} 2...
e6 {[%clk 0:03:00.3]} 3. c3 {[%clk 0:03:00.6]} 3... Nf6 {[%clk 0:02:59.7]} 4. e5
{[%clk 0:03:01]} 4... Nd5 {[%clk 0:03:00]} 5. g3 {[%clk 0:03:01.7]} 5... Nc6
{[%clk 0:02:57.8]} 6. Bg2 {[%clk 0:03:01.1]} 6... d6 {[%clk 0:02:57.9]} 7. exd6
{[%clk 0:03:01.3]} 7... Bxd6 {[%clk 0:02:58.4]} 8. O-O {[%clk 0:03:02]} 8... O-O
{[%clk 0:02:58.4]} 9. d4 {[%clk 0:03:02.7]} 9... cxd4 {[%clk 0:02:58.4]} 10.
Nxd4 {[%clk 0:03:03.6]} 10... Nxd4 {[%clk 0:02:58]} 11. Qxd4 {[%clk 0:03:04.5]}
11... Ne7 {[%clk 0:02:51.5]} 12. Nd2 {[%clk 0:02:58.3]} 12... e5 {[%clk
0:02:47.6]} 13. Qe4 {[%clk 0:02:40.7]} 13... Rb8 {[%clk 0:02:39.2]} 14. Nc4
{[%clk 0:02:37.5]} 14... Bf5 {[%clk 0:02:37.9]} 15. Qe3 {[%clk 0:02:37.2]} 15...
Bc7 {[%clk 0:02:18.1]} 16. Qxa7 {[%clk 0:02:28.2]} 16... b5 {[%clk 0:02:16.5]}
17. Ne3 {[%clk 0:02:23.4]} 17... Bb6 {[%clk 0:02:03.8]} 18. Qa3 {[%clk
0:02:21.2]} 18... Be6 {[%clk 0:02:02.6]} 19. Rd1 {[%clk 0:02:17.2]} 19... Qc7
{[%clk 0:02:02.9]} 20. Qd6 {[%clk 0:01:54.9]} 20... Qa7 {[%clk 0:02:02.3]} 21.
Qxe5 {[%clk 0:01:51.2]} 21... Ng6 {[%clk 0:02:00.8]} 22. Qh5 {[%clk 0:01:50.7]}
22... Rfd8 {[%clk 0:01:58.7]} 23. Bd2 {[%clk 0:01:47.7]} 23... Rd7 {[%clk
0:01:40.3]} 24. a3 {[%clk 0:01:41.3]} 24... Rbd8 {[%clk 0:01:39.6]} 25. Be1
{[%clk 0:01:34.1]} 25... Bxe3 {[%clk 0:01:38.3]} 26. fxe3 {[%clk 0:01:32.8]}
26... Qxe3+ {[%clk 0:01:37.6]} 27. Bf2 {[%clk 0:01:33.4]} 27... Qe5 {[%clk
0:00:57.5]} 28. Qxe5 {[%clk 0:01:18.8]} 28... Nxe5 {[%clk 0:00:58.4]} 29. Rxd7
{[%clk 0:01:14.1]} 29... Rxd7 {[%clk 0:00:59.3]} 30. Bd4 {[%clk 0:01:12.8]}
30... Nc4 {[%clk 0:00:56.3]} 31. b4 {[%clk 0:01:04.8]} 31... Bd5 {[%clk
0:00:36.7]} 32. a4 {[%clk 0:01:00.4]} 32... Bxg2 {[%clk 0:00:30.1]} 33. Kxg2
{[%clk 0:01:01.3]} 33... bxa4 {[%clk 0:00:29.8]} 34. Rxa4 {[%clk 0:01:02.2]}
34... h5 {[%clk 0:00:27.1]} 35. b5 {[%clk 0:01:01]} 35... Nb2 {[%clk 0:00:23.1]}
36. Rb4 {[%clk 0:00:44.3]} 36... Nd3 {[%clk 0:00:22.9]} 37. Rb1 {[%clk 0:00:44]}
37... Kf8 {[%clk 0:00:15.9]} 38. b6 {[%clk 0:00:44.1]} 38... Rb7 {[%clk
0:00:16]} 39. Kf3 {[%clk 0:00:44.4]} 39... f6 {[%clk 0:00:07.9]} 40. Ke4 {[%clk
0:00:44.2]} 40... Ne5 {[%clk 0:00:07.5]} 41. Bxe5 {[%clk 0:00:44.5]} 41... fxe5
{[%clk 0:00:08.4]} 42. c4 {[%clk 0:00:42.5]} 42... Ke7 {[%clk 0:00:08.7]} 43. c5
{[%clk 0:00:43]} 43... Kd7 {[%clk 0:00:07.7]} 44. Kd5 {[%clk 0:00:43.6]} 44...
Kc8 {[%clk 0:00:07.6]} 45. c6 {[%clk 0:00:43.4]} 45... Rf7 {[%clk 0:00:07.7]}
46. Ra1 {[%clk 0:00:39.6]} 46... Kb8 {[%clk 0:00:07]} 47. b7 {[%clk 0:00:34.7]}
1-0

[Event "Early-Titled-Tuesday-Blitz-October-10-2023"]
[Site "Chess.com"]
[Date "2023.10.10"]
[Round "5"]
[White "adotand"]
[Black "Shiirav"]
[Result "1-0"]
[WhiteElo "2867"]
[BlackElo "2658"]
[TimeControl "180+1"]
[EndTime "8:54:13 PDT"]
[Termination "adotand won by resignation"]

1. Nf3 {[%clk 0:03:00.2]} 1... Nf6 {[%clk 0:02:59.8]} 2. c4 {[%clk 0:03:00.4]}
2... g6 {[%clk 0:02:59.4]} 3. g3 {[%clk 0:03:00.6]} 3... Bg7 {[%clk 0:02:59.8]}
4. Bg2 {[%clk 0:03:01.5]} 4... O-O {[%clk 0:02:59.9]} 5. O-O {[%clk 0:03:02.4]}
5... d6 {[%clk 0:03:00.4]} 6. d3 {[%clk 0:03:02.8]} 6... Nc6 {[%clk 0:02:58]} 7.
Nc3 {[%clk 0:03:02.4]} 7... Nh5 {[%clk 0:02:57.9]} 8. Bd2 {[%clk 0:03:01.2]}
8... f5 {[%clk 0:02:57.3]} 9. Rb1 {[%clk 0:03:00.4]} 9... a5 {[%clk 0:02:57.4]}
10. a3 {[%clk 0:03:00.3]} 10... f4 {[%clk 0:02:57.1]} 11. Nd5 {[%clk 0:02:56.1]}
11... e5 {[%clk 0:02:53.6]} 12. b4 {[%clk 0:02:53.6]} 12... axb4 {[%clk
0:02:53.6]} 13. axb4 {[%clk 0:02:54.5]} 13... Bg4 {[%clk 0:02:53.9]} 14. b5
{[%clk 0:02:51.8]} 14... Nd4 {[%clk 0:02:53.1]} 15. Nxd4 {[%clk 0:02:45]} 15...
exd4 {[%clk 0:02:52.6]} 16. Nxf4 {[%clk 0:02:45.5]} 16... Nxf4 {[%clk
0:02:49.7]} 17. Bxf4 {[%clk 0:02:46.4]} 17... Qe7 {[%clk 0:02:43.6]} 18. Bxb7
{[%clk 0:02:40.2]} 18... Ra2 {[%clk 0:02:30.5]} 19. c5 {[%clk 0:02:33.8]} 19...
Rxe2 {[%clk 0:02:27.6]} 20. Qb3+ {[%clk 0:02:33.1]} 20... Kh8 {[%clk 0:02:25.6]}
21. cxd6 {[%clk 0:01:40.5]} 21... cxd6 {[%clk 0:02:25.1]} 22. Bg2 {[%clk
0:01:40.8]} 22... g5 {[%clk 0:02:23.9]} 23. Bc1 {[%clk 0:01:24.1]} 23... h5
{[%clk 0:01:14.1]} 24. b6 {[%clk 0:01:08]} 24... h4 {[%clk 0:01:12.9]} 25. b7
{[%clk 0:01:03.8]} 25... h3 {[%clk 0:01:10.8]} 26. Be4 {[%clk 0:00:54.6]} 26...
Rxe4 {[%clk 0:01:06.5]} 27. b8=Q {[%clk 0:00:54]} 27... Re1 {[%clk 0:01:00.4]}
28. Bxg5 {[%clk 0:00:45.2]} 28... Rxf1+ {[%clk 0:00:55.6]} 29. Rxf1 {[%clk
0:00:44.4]} 29... Qxg5 {[%clk 0:00:55.2]} 30. Qxd6 {[%clk 0:00:42.1]} 30... Qf5
{[%clk 0:00:52.8]} 31. Qdd5 {[%clk 0:00:37.5]} 31... Qf6 {[%clk 0:00:51.7]} 32.
Qbb5 {[%clk 0:00:33.4]} 32... Be2 {[%clk 0:00:49.7]} 33. Qg5 {[%clk 0:00:28.5]}
33... Qf7 {[%clk 0:00:45.4]} 34. Qbd5 {[%clk 0:00:26.1]} 34... Bxf1 {[%clk
0:00:39.6]} 35. Qxf7 {[%clk 0:00:25.8]} 35... Rxf7 {[%clk 0:00:40.2]} 36. Kxf1
{[%clk 0:00:26.4]} 36... Kg8 {[%clk 0:00:38.8]} 37. Qg4 {[%clk 0:00:26.2]} 37...
Rc7 {[%clk 0:00:37.5]} 38. Qxh3 {[%clk 0:00:26.5]} 38... Rc1+ {[%clk 0:00:36.9]}
39. Kg2 {[%clk 0:00:26.9]} 39... Rc3 {[%clk 0:00:35.6]} 40. Qf5 {[%clk
0:00:27.2]} 40... Kh8 {[%clk 0:00:33.9]} 41. h4 {[%clk 0:00:27.5]} 41... Rc2
{[%clk 0:00:27.7]} 42. h5 {[%clk 0:00:27.3]} 42... Rc3 {[%clk 0:00:27.2]} 43.
Qg6 {[%clk 0:00:26.7]} 43... Rc5 {[%clk 0:00:25.4]} 44. h6 {[%clk 0:00:26]} 1-0